[Event "Titled Tuesday Blitz November 08 Early 2022"]
[White "Mendez Fortes, Eduardo Jesus"]
[Black "Seletsky, Grigory"]
[WhiteFideId "3502376"]
[BlackFideId "14112191"]
[WhiteElo "2307"]
[BlackElo "2492"]
[Result "1-0"]
[Round "05"]
[TimeControl "180+1"]
[Date "2022.11.09"]
[WhiteClock "0:00:01"]
[BlackClock "0:00:01"]

1. e4 {[%clk 0:03:00]}  c5 {[%clk 0:02:30]} 2. Nf3 {[%clk 0:03:00]}  d6 {[%clk 0:02:27]} 3. d4 {[%clk 0:03:00]}  cxd4 {[%clk 0:02:27]} 4. Nxd4 {[%clk 0:03:01]}  Nf6 {[%clk 0:02:27]} 5. Nc3 {[%clk 0:03:02]}  a6 {[%clk 0:02:27]} 6. Bg5 {[%clk 0:03:02]}  e5 {[%clk 0:02:27]} 7. Nf5 {[%clk 0:02:58]}  Bxf5 {[%clk 0:02:26]} 8. Bxf6 {[%clk 0:02:55]}  Qxf6 {[%clk 0:02:23]} 9. Nd5 {[%clk 0:02:53]}  Qd8 {[%clk 0:02:21]} 10. exf5 {[%clk 0:02:53]}  Nd7 {[%clk 0:02:19]} 11. a4 {[%clk 0:02:48]}  Be7 {[%clk 0:02:17]} 12. Bc4 {[%clk 0:02:44]}  Nf6 {[%clk 0:02:16]} 13. Ne3 {[%clk 0:02:36]}  O-O {[%clk 0:02:14]} 14. O-O {[%clk 0:02:31]}  Rc8 {[%clk 0:02:12]} 15. Bd5 {[%clk 0:02:29]}  Rc5 {[%clk 0:02:10]} 16. b4 {[%clk 0:02:16]}  Rc7 {[%clk 0:02:05]} 17. Qd3 {[%clk 0:02:01]}  Qc8 {[%clk 0:01:56]} 18. c4 {[%clk 0:01:57]}  Rd8 {[%clk 0:01:49]} 19. a5 {[%clk 0:01:51]}  Ne8 {[%clk 0:01:32]} 20. g3 {[%clk 0:01:37]}  Bg5 {[%clk 0:01:31]} 21. Ng2 {[%clk 0:01:31]}  Nf6 {[%clk 0:01:26]} 22. h4 {[%clk 0:01:17]}  Nxd5 {[%clk 0:01:16]} 23. cxd5 {[%clk 0:01:10]}  Bf6 {[%clk 0:01:11]} 24. Rab1 {[%clk 0:01:00]}  Rc3 {[%clk 0:01:08]} 25. Qe2 {[%clk 0:00:58]}  Qc7 {[%clk 0:00:56]} 26. Ne3 {[%clk 0:00:57]}  Rc8 {[%clk 0:00:52]} 27. Qg4 {[%clk 0:00:55]}  Rd3 {[%clk 0:00:47]} 28. Qe4 {[%clk 0:00:51]}  Rd4 {[%clk 0:00:47]} 29. Qf3 {[%clk 0:00:48]}  e4 {[%clk 0:00:42]} 30. Qe2 {[%clk 0:00:48]}  Qc3 {[%clk 0:00:38]} 31. Rfe1 {[%clk 0:00:40]}  Rxb4 {[%clk 0:00:30]} 32. Rbd1 {[%clk 0:00:27]}  Rb2 {[%clk 0:00:26]} 33. Qg4 {[%clk 0:00:23]}  Re8 {[%clk 0:00:26]} 34. Re2 {[%clk 0:00:19]}  Bd4 {[%clk 0:00:26]} 35. Rxb2 {[%clk 0:00:18]}  Qxb2 {[%clk 0:00:24]} 36. Re1 {[%clk 0:00:15]}  Qc3 {[%clk 0:00:21]} 37. Re2 {[%clk 0:00:14]}  Qd3 {[%clk 0:00:20]} 38. Kg2 {[%clk 0:00:12]}  f6 {[%clk 0:00:16]} 39. Re1 {[%clk 0:00:11]}  Re5 {[%clk 0:00:15]} 40. h5 {[%clk 0:00:11]}  h6 {[%clk 0:00:14]} 41. Qf4 {[%clk 0:00:09]}  Bxe3 {[%clk 0:00:14]} 42. Rxe3 {[%clk 0:00:09]}  Qxd5 {[%clk 0:00:14]} 43. Qg4 {[%clk 0:00:09]}  Rxf5 {[%clk 0:00:12]} 44. Qg6 {[%clk 0:00:07]}  Rg5 {[%clk 0:00:12]} 45. Qe8+ {[%clk 0:00:07]}  Kh7 {[%clk 0:00:10]} 46. Qd7 {[%clk 0:00:06]}  Rxh5 {[%clk 0:00:10]} 47. Qe7 {[%clk 0:00:05]}  Re5 {[%clk 0:00:09]} 48. Qc7 {[%clk 0:00:04]}  Qxa5 {[%clk 0:00:06]} 49. Qxd6 {[%clk 0:00:04]}  Qd5 {[%clk 0:00:05]} 50. Qb6 {[%clk 0:00:04]}  Rf5 {[%clk 0:00:05]} 51. Qb2 {[%clk 0:00:04]}  Rf3 {[%clk 0:00:05]} 52. Re2 {[%clk 0:00:03]}  Rd3 {[%clk 0:00:03]} 53. Kg1 {[%clk 0:00:03]}  e3 {[%clk 0:00:03]} 54. fxe3 {[%clk 0:00:02]}  Rd1+ {[%clk 0:00:02]} 55. Kf2 {[%clk 0:00:02]}  Qd3 {[%clk 0:00:01]} 56. Qc2 {[%clk 0:00:01]} 1-0


[Site "https://www.chess.com"]

[Event "Titled Tuesday Blitz November 08 Early 2022"]
[White "Milikow, Yoav"]
[Black "Adewumi, Tanitoluwa"]
[WhiteFideId "2822237"]
[BlackFideId "30966396"]
[WhiteElo "2341"]
[BlackElo "2564"]
[Result "1-0"]
[Round "05"]
[TimeControl "180+1"]
[Date "2022.11.09"]
[WhiteClock "0:00:08"]
[BlackClock "0:00:01"]

1. d4 {[%clk 0:03:00]}  Nf6 {[%clk 0:02:57]} 2. c4 {[%clk 0:03:01]}  e6 {[%clk 0:02:57]} 3. Nc3 {[%clk 0:03:01]}  Bb4 {[%clk 0:02:57]} 4. Qc2 {[%clk 0:03:01]}  O-O {[%clk 0:02:57]} 5. Nf3 {[%clk 0:02:57]}  c5 {[%clk 0:02:56]} 6. dxc5 {[%clk 0:02:57]}  Na6 {[%clk 0:02:54]} 7. g3 {[%clk 0:02:58]}  Nxc5 {[%clk 0:02:51]} 8. Bg2 {[%clk 0:02:58]}  Bxc3+ {[%clk 0:02:43]} 9. Qxc3 {[%clk 0:02:54]}  Nce4 {[%clk 0:02:42]} 10. Qd4 {[%clk 0:02:39]}  d6 {[%clk 0:02:41]} 11. O-O {[%clk 0:02:36]}  e5 {[%clk 0:02:40]} 12. Qe3 {[%clk 0:02:25]}  Be6 {[%clk 0:02:37]} 13. b3 {[%clk 0:02:16]}  Re8 {[%clk 0:02:33]} 14. Nh4 {[%clk 0:01:58]}  d5 {[%clk 0:02:30]} 15. cxd5 {[%clk 0:01:53]}  Bxd5 {[%clk 0:02:29]} 16. f3 {[%clk 0:01:45]}  Nd6 {[%clk 0:02:21]} 17. Bb2 {[%clk 0:01:39]}  Qe7 {[%clk 0:02:16]} 18. Ba3 {[%clk 0:01:32]}  Nf5 {[%clk 0:01:57]} 19. Qc1 {[%clk 0:01:19]}  Nd4 {[%clk 0:00:14]} 20. Bxe7 {[%clk 0:01:17]}  Nxe2+ {[%clk 0:00:12]} 21. Kf2 {[%clk 0:01:18]}  Nxc1 {[%clk 0:00:13]} 22. Bxf6 {[%clk 0:01:18]}  Nd3+ {[%clk 0:00:11]} 23. Ke3 {[%clk 0:01:18]}  Nb4 {[%clk 0:00:04]} 24. Bxg7 {[%clk 0:00:43]}  Nc2+ {[%clk 0:00:03]} 25. Kd2 {[%clk 0:00:41]}  Nxa1 {[%clk 0:00:04]} 26. Bh6 {[%clk 0:00:40]}  Rad8 {[%clk 0:00:02]} 27. Rxa1 {[%clk 0:00:33]}  Bxf3+ {[%clk 0:00:02]} 28. Ke3 {[%clk 0:00:34]}  Bxg2 {[%clk 0:00:02]} 29. Nxg2 {[%clk 0:00:35]}  Rd6 {[%clk 0:00:02]} 30. Bg5 {[%clk 0:00:33]}  f6 {[%clk 0:00:03]} 31. Bh4 {[%clk 0:00:34]}  Red8 {[%clk 0:00:03]} 32. Rf1 {[%clk 0:00:28]}  Kf7 {[%clk 0:00:03]} 33. Ne1 {[%clk 0:00:27]}  Kg6 {[%clk 0:00:02]} 34. Nf3 {[%clk 0:00:24]}  Rd3+ {[%clk 0:00:02]} 35. Ke2 {[%clk 0:00:20]}  R8d5 {[%clk 0:00:02]} 36. Bxf6 {[%clk 0:00:15]}  e4 {[%clk 0:00:02]} 37. Ne5+ {[%clk 0:00:13]}  Kh5 {[%clk 0:00:01]} 38. g4+ {[%clk 0:00:07]}  Kh6 {[%clk 0:00:01]} 39. Nxd3 {[%clk 0:00:06]}  exd3+ {[%clk 0:00:01]} 40. Kd2 {[%clk 0:00:07]}  Kg6 {[%clk 0:00:02]} 41. h4 {[%clk 0:00:07]}  Rc5 {[%clk 0:00:02]} 42. Bc3 {[%clk 0:00:07]}  Rc6 {[%clk 0:00:02]} 43. Rf3 {[%clk 0:00:07]}  h5 {[%clk 0:00:02]} 44. g5 {[%clk 0:00:06]}  Re6 {[%clk 0:00:02]} 45. Rf6+ {[%clk 0:00:07]}  Rxf6 {[%clk 0:00:01]} 46. Bxf6 {[%clk 0:00:08]} 1-0


[Site "https://www.chess.com"]

[Event "Titled Tuesday Blitz November 08 Early 2022"]
[White "Mills, Morgen"]
[Black "Hajiyev, Kanan"]
[WhiteFideId "2013304"]
[BlackFideId "13404148"]
[WhiteElo "2278"]
[BlackElo "2118"]
[Result "0-1"]
[Round "05"]
[TimeControl "180+1"]
[Date "2022.11.09"]
[WhiteClock "0:00:03"]
[BlackClock "0:00:09"]

1. e4 {[%clk 0:03:00]}  c6 {[%clk 0:02:57]} 2. Nc3 {[%clk 0:02:59]}  d5 {[%clk 0:02:58]} 3. d4 {[%clk 0:02:59]}  a6 {[%clk 0:02:58]} 4. e5 {[%clk 0:02:58]}  Bf5 {[%clk 0:02:58]} 5. g4 {[%clk 0:02:55]}  Bg6 {[%clk 0:02:58]} 6. h4 {[%clk 0:02:54]}  h5 {[%clk 0:02:56]} 7. g5 {[%clk 0:02:49]}  e6 {[%clk 0:02:56]} 8. Bd3 {[%clk 0:02:48]}  Ne7 {[%clk 0:02:54]} 9. Bxg6 {[%clk 0:02:42]}  Nxg6 {[%clk 0:02:42]} 10. f4 {[%clk 0:02:36]}  Ne7 {[%clk 0:02:41]} 11. Nce2 {[%clk 0:02:33]}  Nf5 {[%clk 0:02:35]} 12. Qd3 {[%clk 0:02:30]}  g6 {[%clk 0:02:34]} 13. Ng3 {[%clk 0:02:27]}  Nxg3 {[%clk 0:02:30]} 14. Qxg3 {[%clk 0:02:28]}  Qb6 {[%clk 0:02:28]} 15. Ne2 {[%clk 0:02:14]}  c5 {[%clk 0:02:26]} 16. Qb3 {[%clk 0:02:09]}  Qxb3 {[%clk 0:01:53]} 17. axb3 {[%clk 0:02:06]}  Nc6 {[%clk 0:01:48]} 18. Be3 {[%clk 0:02:04]}  cxd4 {[%clk 0:01:38]} 19. Bxd4 {[%clk 0:02:04]}  Rc8 {[%clk 0:01:34]} 20. c3 {[%clk 0:02:02]}  Be7 {[%clk 0:01:24]} 21. Kd2 {[%clk 0:02:00]}  Kd7 {[%clk 0:01:22]} 22. b4 {[%clk 0:01:52]}  Nxd4 {[%clk 0:01:08]} 23. Nxd4 {[%clk 0:01:50]}  Rc4 {[%clk 0:01:09]} 24. Rhf1 {[%clk 0:01:47]}  Bxb4 {[%clk 0:01:04]} 25. Kd3 {[%clk 0:01:13]}  Be7 {[%clk 0:01:04]} 26. b3 {[%clk 0:01:04]}  Rc7 {[%clk 0:01:02]} 27. b4 {[%clk 0:00:59]}  Rhc8 {[%clk 0:01:00]} 28. Ne2 {[%clk 0:00:59]}  Rc4 {[%clk 0:00:56]} 29. Ra4 {[%clk 0:00:53]}  Bd8 {[%clk 0:00:48]} 30. Rf3 {[%clk 0:00:31]}  Bb6 {[%clk 0:00:46]} 31. Kd2 {[%clk 0:00:30]}  Ke7 {[%clk 0:00:27]} 32. Ra1 {[%clk 0:00:19]}  d4 {[%clk 0:00:25]} 33. cxd4 {[%clk 0:00:14]}  Bxd4 {[%clk 0:00:21]} 34. Rb1 {[%clk 0:00:12]}  Bb6 {[%clk 0:00:14]} 35. Rd3 {[%clk 0:00:09]}  Rc2+ {[%clk 0:00:10]} 36. Ke1 {[%clk 0:00:08]}  R8c4 {[%clk 0:00:09]} 37. Rbd1 {[%clk 0:00:07]}  Rc7 {[%clk 0:00:09]} 38. R1d2 {[%clk 0:00:04]}  Rxd2 {[%clk 0:00:08]} 39. Kxd2 {[%clk 0:00:03]}  Rc4 {[%clk 0:00:09]} 0-1


[Site "https://www.chess.com"]

[Event "Titled Tuesday Blitz November 08 Early 2022"]
[White "Moaataz, Ayah"]
[Black "Odegov, Artem"]
[WhiteFideId "10615873"]
[BlackFideId "34183644"]
[WhiteElo "1993"]
[BlackElo "2298"]
[Result "0-1"]
[Round "05"]
[TimeControl "180+1"]
[Date "2022.11.09"]
[WhiteClock "0:02:00"]
[BlackClock "0:02:12"]

1. c4 {[%clk 0:03:00]}  Nf6 {[%clk 0:02:59]} 2. g3 {[%clk 0:03:01]}  c5 {[%clk 0:02:58]} 3. Bg2 {[%clk 0:03:02]}  e6 {[%clk 0:02:59]} 4. Nf3 {[%clk 0:03:02]}  d5 {[%clk 0:02:59]} 5. cxd5 {[%clk 0:03:02]}  exd5 {[%clk 0:03:00]} 6. O-O {[%clk 0:03:02]}  Nc6 {[%clk 0:03:01]} 7. d4 {[%clk 0:03:02]}  Be7 {[%clk 0:02:59]} 8. dxc5 {[%clk 0:03:02]}  Bxc5 {[%clk 0:02:58]} 9. Nc3 {[%clk 0:03:03]}  O-O {[%clk 0:02:58]} 10. Bg5 {[%clk 0:03:02]}  d4 {[%clk 0:02:58]} 11. Ne4 {[%clk 0:03:01]}  Be7 {[%clk 0:02:58]} 12. Bxf6 {[%clk 0:03:00]}  Bxf6 {[%clk 0:02:59]} 13. Rc1 {[%clk 0:03:00]}  Bf5 {[%clk 0:02:59]} 14. Nc5 {[%clk 0:02:51]}  Qe7 {[%clk 0:02:56]} 15. Nh4 {[%clk 0:02:49]}  Bg4 {[%clk 0:02:52]} 16. Nxb7 {[%clk 0:02:35]}  Bxe2 {[%clk 0:02:46]} 17. Qa4 {[%clk 0:02:23]}  Bxf1 {[%clk 0:02:43]} 18. Rxf1 {[%clk 0:02:24]}  Bxh4 {[%clk 0:02:33]} 19. Bxc6 {[%clk 0:02:22]}  Bf6 {[%clk 0:02:31]} 20. b4 {[%clk 0:02:14]}  Rab8 {[%clk 0:02:30]} 21. Qxa7 {[%clk 0:02:07]}  Qxb4 {[%clk 0:02:19]} 22. Bf3 {[%clk 0:02:03]}  d3 {[%clk 0:02:18]} 23. Nc5 {[%clk 0:02:00]}  Bd4 {[%clk 0:02:12]} 0-1


[Site "https://www.chess.com"]

[Event "Titled Tuesday Blitz November 08 Early 2022"]
[White "Molina, Roberto Junio Brito"]
[Black "Shuvalov, Evgenij"]
[WhiteFideId "2109450"]
[BlackFideId "4187237"]
[WhiteElo "2388"]
[BlackElo "2049"]
[Result "0-1"]
[Round "05"]
[TimeControl "180+1"]
[Date "2022.11.09"]
[WhiteClock "0:00:14"]
[BlackClock "0:00:15"]

1. d4 {[%clk 0:03:00]}  Nf6 {[%clk 0:02:59]} 2. c4 {[%clk 0:03:00]}  g6 {[%clk 0:02:59]} 3. Nc3 {[%clk 0:02:59]}  d5 {[%clk 0:02:59]} 4. Nf3 {[%clk 0:02:59]}  Bg7 {[%clk 0:02:59]} 5. Qb3 {[%clk 0:02:59]}  dxc4 {[%clk 0:02:59]} 6. Qxc4 {[%clk 0:03:00]}  O-O {[%clk 0:02:58]} 7. e4 {[%clk 0:03:00]}  a6 {[%clk 0:02:58]} 8. e5 {[%clk 0:03:00]}  b5 {[%clk 0:02:44]} 9. Qb3 {[%clk 0:02:59]}  Be6 {[%clk 0:02:27]} 10. exf6 {[%clk 0:02:58]}  Bxb3 {[%clk 0:02:27]} 11. fxg7 {[%clk 0:02:58]}  Kxg7 {[%clk 0:02:25]} 12. axb3 {[%clk 0:02:57]}  Nc6 {[%clk 0:02:22]} 13. Be3 {[%clk 0:02:57]}  Nb4 {[%clk 0:02:18]} 14. Rc1 {[%clk 0:02:56]}  f6 {[%clk 0:02:13]} 15. Be2 {[%clk 0:02:56]}  c6 {[%clk 0:02:11]} 16. O-O {[%clk 0:02:55]}  Re8 {[%clk 0:02:06]} 17. Ne4 {[%clk 0:02:53]}  Nd5 {[%clk 0:02:02]} 18. Nc5 {[%clk 0:02:52]}  Kg8 {[%clk 0:01:58]} 19. Bd2 {[%clk 0:02:47]}  Qd6 {[%clk 0:01:55]} 20. Rfe1 {[%clk 0:02:44]}  e5 {[%clk 0:01:53]} 21. dxe5 {[%clk 0:02:40]}  fxe5 {[%clk 0:01:53]} 22. Ne4 {[%clk 0:02:25]}  Qf8 {[%clk 0:01:47]} 23. Rxc6 {[%clk 0:02:19]}  Rec8 {[%clk 0:01:33]} 24. Nxe5 {[%clk 0:01:59]}  Rxc6 {[%clk 0:01:15]} 25. Nxc6 {[%clk 0:01:59]}  Rc8 {[%clk 0:01:10]} 26. Nd4 {[%clk 0:01:52]}  Nf4 {[%clk 0:01:04]} 27. Bf1 {[%clk 0:01:43]}  Rd8 {[%clk 0:00:55]} 28. Bxf4 {[%clk 0:01:30]}  Rxd4 {[%clk 0:00:48]} 29. Be5 {[%clk 0:01:28]}  Qb4 {[%clk 0:00:31]} 30. Bxd4 {[%clk 0:00:47]}  Qxe1 {[%clk 0:00:30]} 31. f3 {[%clk 0:00:44]}  Qd1 {[%clk 0:00:25]} 32. Bc5 {[%clk 0:00:36]}  Qxb3 {[%clk 0:00:22]} 33. Bd4 {[%clk 0:00:30]}  Qd1 {[%clk 0:00:21]} 34. Bc3 {[%clk 0:00:22]}  b4 {[%clk 0:00:17]} 35. Bd2 {[%clk 0:00:19]}  a5 {[%clk 0:00:16]} 36. Kf2 {[%clk 0:00:18]}  Qc2 {[%clk 0:00:16]} 37. Bc4+ {[%clk 0:00:14]}  Qxc4 {[%clk 0:00:15]} 0-1


[Site "https://www.chess.com"]

[Event "Titled Tuesday Blitz November 08 Early 2022"]
[White "Mouhamad, Joachim"]
[Black "Stribuk, Artiom"]
[WhiteFideId "656410"]
[BlackFideId "13515659"]
[WhiteElo "2164"]
[BlackElo "2371"]
[Result "1-0"]
[Round "05"]
[TimeControl "180+1"]
[Date "2022.11.09"]
[WhiteClock "0:00:05"]
[BlackClock "0:00:09"]

1. e4 {[%clk 0:03:00]}  e5 {[%clk 0:02:58]} 2. Nf3 {[%clk 0:03:00]}  Nc6 {[%clk 0:02:58]} 3. Bc4 {[%clk 0:03:00]}  Nf6 {[%clk 0:02:58]} 4. d4 {[%clk 0:03:00]}  exd4 {[%clk 0:02:55]} 5. e5 {[%clk 0:03:01]}  Ng4 {[%clk 0:02:54]} 6. O-O {[%clk 0:02:58]}  Be7 {[%clk 0:02:54]} 7. Re1 {[%clk 0:02:57]}  d6 {[%clk 0:02:52]} 8. exd6 {[%clk 0:02:52]}  cxd6 {[%clk 0:02:51]} 9. Nxd4 {[%clk 0:02:32]}  O-O {[%clk 0:02:46]} 10. Be2 {[%clk 0:02:21]}  Nge5 {[%clk 0:02:11]} 11. Nc3 {[%clk 0:02:21]}  Bf6 {[%clk 0:02:09]} 12. Be3 {[%clk 0:02:12]}  d5 {[%clk 0:01:51]} 13. Nxc6 {[%clk 0:01:58]}  bxc6 {[%clk 0:01:49]} 14. Bc5 {[%clk 0:01:54]}  Re8 {[%clk 0:01:49]} 15. Qd2 {[%clk 0:01:38]}  Bf5 {[%clk 0:01:42]} 16. Bd4 {[%clk 0:01:31]}  Qd6 {[%clk 0:01:27]} 17. Na4 {[%clk 0:01:26]}  Nc4 {[%clk 0:01:02]} 18. Qc3 {[%clk 0:01:02]}  Bxd4 {[%clk 0:01:01]} 19. Qxd4 {[%clk 0:01:02]}  Re4 {[%clk 0:01:00]} 20. Qc3 {[%clk 0:00:48]}  h6 {[%clk 0:00:40]} 21. Bd3 {[%clk 0:00:44]}  Rxe1+ {[%clk 0:00:35]} 22. Rxe1 {[%clk 0:00:45]}  Bxd3 {[%clk 0:00:32]} 23. cxd3 {[%clk 0:00:36]}  Nb6 {[%clk 0:00:32]} 24. Nc5 {[%clk 0:00:29]}  Nd7 {[%clk 0:00:30]} 25. Nxd7 {[%clk 0:00:16]}  Qxd7 {[%clk 0:00:31]} 26. g3 {[%clk 0:00:14]}  Re8 {[%clk 0:00:25]} 27. Rxe8+ {[%clk 0:00:10]}  Qxe8 {[%clk 0:00:26]} 28. Kg2 {[%clk 0:00:10]}  Qe2 {[%clk 0:00:23]} 29. a4 {[%clk 0:00:08]}  a5 {[%clk 0:00:18]} 30. h4 {[%clk 0:00:07]}  g6 {[%clk 0:00:16]} 31. Qd4 {[%clk 0:00:02]}  h5 {[%clk 0:00:14]} 32. Qc3 {[%clk 0:00:03]}  Kh7 {[%clk 0:00:14]} 33. Qf6 {[%clk 0:00:02]}  Kg8 {[%clk 0:00:14]} 34. Qd8+ {[%clk 0:00:02]}  Kg7 {[%clk 0:00:13]} 35. Qxa5 {[%clk 0:00:02]}  Qxd3 {[%clk 0:00:13]} 36. Qc3+ {[%clk 0:00:01]}  Qxc3 {[%clk 0:00:11]} 37. bxc3 {[%clk 0:00:02]}  c5 {[%clk 0:00:11]} 38. a5 {[%clk 0:00:03]}  d4 {[%clk 0:00:10]} 39. cxd4 {[%clk 0:00:03]}  c4 {[%clk 0:00:10]} 40. Kf3 {[%clk 0:00:04]}  c3 {[%clk 0:00:11]} 41. Ke3 {[%clk 0:00:04]}  g5 {[%clk 0:00:08]} 42. Kd3 {[%clk 0:00:05]}  f5 {[%clk 0:00:08]} 43. hxg5 {[%clk 0:00:05]}  f4 {[%clk 0:00:09]} 44. Kxc3 {[%clk 0:00:05]}  Kg6 {[%clk 0:00:08]} 45. a6 {[%clk 0:00:05]}  fxg3 {[%clk 0:00:08]} 46. fxg3 {[%clk 0:00:05]}  Kxg5 {[%clk 0:00:09]} 47. a7 {[%clk 0:00:05]} 1-0


[Site "https://www.chess.com"]

[Event "Titled Tuesday Blitz November 08 Early 2022"]
[White "Namitbir Singh Walia"]
[Black "Mesa Cruz, Juan Carlos"]
[WhiteFideId "35071068"]
[BlackFideId "6423400"]
[WhiteElo "2239"]
[BlackElo "2059"]
[Result "1-0"]
[Round "05"]
[TimeControl "180+1"]
[Date "2022.11.09"]
[WhiteClock "0:02:32"]
[BlackClock "0:02:13"]

1. e4 {[%clk 0:03:00]}  c5 {[%clk 0:02:59]} 2. Nf3 {[%clk 0:03:00]}  d6 {[%clk 0:02:59]} 3. Bb5+ {[%clk 0:02:59]}  Bd7 {[%clk 0:02:58]} 4. Bxd7+ {[%clk 0:02:57]}  Qxd7 {[%clk 0:02:58]} 5. O-O {[%clk 0:02:57]}  Nf6 {[%clk 0:02:57]} 6. Re1 {[%clk 0:02:57]}  e6 {[%clk 0:02:56]} 7. c3 {[%clk 0:02:57]}  Be7 {[%clk 0:02:55]} 8. d4 {[%clk 0:02:57]}  cxd4 {[%clk 0:02:54]} 9. cxd4 {[%clk 0:02:58]}  d5 {[%clk 0:02:54]} 10. e5 {[%clk 0:02:57]}  Ne4 {[%clk 0:02:54]} 11. Qd3 {[%clk 0:02:55]}  Nc6 {[%clk 0:02:44]} 12. a3 {[%clk 0:02:54]}  Rc8 {[%clk 0:02:36]} 13. Nbd2 {[%clk 0:02:51]}  Nxd2 {[%clk 0:02:35]} 14. Bxd2 {[%clk 0:02:52]}  Rc7 {[%clk 0:02:32]} 15. h4 {[%clk 0:02:50]}  O-O {[%clk 0:02:31]} 16. h5 {[%clk 0:02:49]}  Rfc8 {[%clk 0:02:29]} 17. h6 {[%clk 0:02:46]}  g6 {[%clk 0:02:27]} 18. Nh2 {[%clk 0:02:44]}  a6 {[%clk 0:02:17]} 19. Ng4 {[%clk 0:02:41]}  Na7 {[%clk 0:02:17]} 20. Qf3 {[%clk 0:02:37]}  Rc2 {[%clk 0:02:14]} 21. Nf6+ {[%clk 0:02:34]}  Bxf6 {[%clk 0:02:13]} 22. Qxf6 {[%clk 0:02:34]}  Kf8 {[%clk 0:02:13]} 23. Bb4+ {[%clk 0:02:32]} 1-0


[Site "https://www.chess.com"]

[Event "Titled Tuesday Blitz November 08 Early 2022"]
[White "Nurmanova, Alua"]
[Black "Luxama, Jacques Muller"]
[WhiteFideId "13729390"]
[BlackFideId "11900113"]
[WhiteElo "2120"]
[BlackElo "1931"]
[Result "1-0"]
[Round "05"]
[TimeControl "180+1"]
[Date "2022.11.09"]
[WhiteClock "0:00:12"]
[BlackClock "0:00:01"]

1. e4 {[%clk 0:03:00]}  c5 {[%clk 0:02:56]} 2. Nf3 {[%clk 0:02:58]}  d6 {[%clk 0:02:49]} 3. d4 {[%clk 0:02:53]}  cxd4 {[%clk 0:02:49]} 4. Nxd4 {[%clk 0:02:54]}  Nf6 {[%clk 0:02:48]} 5. Nc3 {[%clk 0:02:54]}  a6 {[%clk 0:02:49]} 6. Bg5 {[%clk 0:02:52]}  e6 {[%clk 0:02:47]} 7. f4 {[%clk 0:02:51]}  Qb6 {[%clk 0:02:47]} 8. Qd2 {[%clk 0:02:50]}  Qxb2 {[%clk 0:02:46]} 9. Rb1 {[%clk 0:02:50]}  Qa3 {[%clk 0:02:46]} 10. e5 {[%clk 0:02:49]}  dxe5 {[%clk 0:02:46]} 11. fxe5 {[%clk 0:02:50]}  Nfd7 {[%clk 0:02:47]} 12. Be2 {[%clk 0:02:50]}  Nc6 {[%clk 0:02:29]} 13. Ncb5 {[%clk 0:02:17]}  axb5 {[%clk 0:02:05]} 14. Nxb5 {[%clk 0:02:18]}  Bb4 {[%clk 0:01:59]} 15. c3 {[%clk 0:01:23]}  Bxc3 {[%clk 0:01:56]} 16. Nxc3 {[%clk 0:01:20]}  O-O {[%clk 0:01:50]} 17. O-O {[%clk 0:01:13]}  Ndxe5 {[%clk 0:01:38]} 18. Rb3 {[%clk 0:01:00]}  Qc5+ {[%clk 0:01:34]} 19. Be3 {[%clk 0:00:59]}  Qe7 {[%clk 0:01:33]} 20. Nb5 {[%clk 0:00:57]}  Rd8 {[%clk 0:01:25]} 21. Qc2 {[%clk 0:00:57]}  Bd7 {[%clk 0:01:13]} 22. Bc5 {[%clk 0:00:49]}  Qg5 {[%clk 0:01:04]} 23. Rg3 {[%clk 0:00:48]}  Qh6 {[%clk 0:00:51]} 24. Be3 {[%clk 0:00:43]}  Qh4 {[%clk 0:00:31]} 25. Rh3 {[%clk 0:00:42]}  Qxh3 {[%clk 0:00:30]} 26. gxh3 {[%clk 0:00:42]}  Ng6 {[%clk 0:00:28]} 27. Nd6 {[%clk 0:00:39]}  Rf8 {[%clk 0:00:24]} 28. Nxb7 {[%clk 0:00:37]}  Nce5 {[%clk 0:00:23]} 29. Nc5 {[%clk 0:00:33]}  Bc6 {[%clk 0:00:21]} 30. Nd3 {[%clk 0:00:24]}  Bd5 {[%clk 0:00:19]} 31. Nxe5 {[%clk 0:00:21]}  Nxe5 {[%clk 0:00:18]} 32. a4 {[%clk 0:00:20]}  Rac8 {[%clk 0:00:12]} 33. Qb2 {[%clk 0:00:20]}  Ng6 {[%clk 0:00:12]} 34. Bd4 {[%clk 0:00:18]}  f6 {[%clk 0:00:11]} 35. Bd3 {[%clk 0:00:18]}  e5 {[%clk 0:00:10]} 36. Bc3 {[%clk 0:00:17]}  Bf7 {[%clk 0:00:10]} 37. h4 {[%clk 0:00:17]}  Nxh4 {[%clk 0:00:09]} 38. a5 {[%clk 0:00:16]}  Rfd8 {[%clk 0:00:09]} 39. Be2 {[%clk 0:00:15]}  Bd5 {[%clk 0:00:07]} 40. a6 {[%clk 0:00:15]}  Rb8 {[%clk 0:00:07]} 41. Qc1 {[%clk 0:00:12]}  Rdc8 {[%clk 0:00:07]} 42. Qd2 {[%clk 0:00:12]}  Bf7 {[%clk 0:00:07]} 43. a7 {[%clk 0:00:12]}  Ra8 {[%clk 0:00:07]} 44. Qe3 {[%clk 0:00:12]}  Nf5 {[%clk 0:00:05]} 45. Rxf5 {[%clk 0:00:11]}  Bg6 {[%clk 0:00:05]} 46. Rf1 {[%clk 0:00:11]}  Rc7 {[%clk 0:00:05]} 47. Ra1 {[%clk 0:00:11]}  Bf7 {[%clk 0:00:03]} 48. Bf3 {[%clk 0:00:11]}  Rac8 {[%clk 0:00:02]} 49. a8=Q {[%clk 0:00:11]}  Rxa8 {[%clk 0:00:02]} 50. Rxa8+ {[%clk 0:00:12]}  Be8 {[%clk 0:00:02]} 51. Rxe8+ {[%clk 0:00:12]}  Kf7 {[%clk 0:00:02]} 52. Ra8 {[%clk 0:00:12]}  g6 {[%clk 0:00:01]} 53. Bd5+ {[%clk 0:00:12]}  Kg7 {[%clk 0:00:01]} 54. Bd2 {[%clk 0:00:12]} 1-0


[Site "https://www.chess.com"]

[Event "Titled Tuesday Blitz November 08 Early 2022"]
[White "Ovchinnikov, Vsevolod"]
[Black "Donchenko, Alexander"]
[WhiteFideId "24176842"]
[BlackFideId "24603295"]
[WhiteElo "2376"]
[BlackElo "2572"]
[Result "0-1"]
[Round "05"]
[TimeControl "180+1"]
[Date "2022.11.09"]
[WhiteClock "0:00:09"]
[BlackClock "0:00:53"]

1. d4 {[%clk 0:02:57]}  Nf6 {[%clk 0:02:58]} 2. c4 {[%clk 0:02:58]}  e6 {[%clk 0:02:58]} 3. g3 {[%clk 0:02:58]}  c5 {[%clk 0:02:58]} 4. d5 {[%clk 0:02:58]}  exd5 {[%clk 0:02:57]} 5. cxd5 {[%clk 0:02:59]}  d6 {[%clk 0:02:58]} 6. Nc3 {[%clk 0:03:00]}  g6 {[%clk 0:02:59]} 7. Bg2 {[%clk 0:03:01]}  Bg7 {[%clk 0:03:00]} 8. Nf3 {[%clk 0:03:01]}  O-O {[%clk 0:03:00]} 9. O-O {[%clk 0:03:02]}  Re8 {[%clk 0:03:01]} 10. Nd2 {[%clk 0:03:03]}  a6 {[%clk 0:03:01]} 11. a4 {[%clk 0:03:03]}  Nbd7 {[%clk 0:03:01]} 12. h3 {[%clk 0:03:04]}  Rb8 {[%clk 0:03:01]} 13. a5 {[%clk 0:03:03]}  b5 {[%clk 0:02:53]} 14. axb6 {[%clk 0:03:03]}  Nxb6 {[%clk 0:02:53]} 15. Kh2 {[%clk 0:03:02]}  h5 {[%clk 0:02:47]} 16. e4 {[%clk 0:02:48]}  Nfd7 {[%clk 0:02:44]} 17. Qc2 {[%clk 0:01:59]}  c4 {[%clk 0:02:42]} 18. Nd1 {[%clk 0:01:59]}  Ne5 {[%clk 0:02:33]} 19. Ne3 {[%clk 0:01:56]}  Qc7 {[%clk 0:02:21]} 20. Ra3 {[%clk 0:01:13]}  Re7 {[%clk 0:02:03]} 21. f4 {[%clk 0:00:44]}  Nd3 {[%clk 0:02:03]} 22. Ndxc4 {[%clk 0:00:31]}  Nb4 {[%clk 0:01:21]} 23. Qe2 {[%clk 0:00:31]}  Nxc4 {[%clk 0:01:19]} 24. Qxc4 {[%clk 0:00:25]}  Qb6 {[%clk 0:01:18]} 25. Qb3 {[%clk 0:00:19]}  Rc7 {[%clk 0:01:07]} 26. Nc4 {[%clk 0:00:18]}  Qc5 {[%clk 0:01:06]} 27. Na5 {[%clk 0:00:17]}  Nc6 {[%clk 0:01:04]} 28. Qa2 {[%clk 0:00:16]}  Nxa5 {[%clk 0:00:55]} 29. Rxa5 {[%clk 0:00:17]}  Qc2 {[%clk 0:00:55]} 30. b4 {[%clk 0:00:12]}  Rxb4 {[%clk 0:00:54]} 31. Bd2 {[%clk 0:00:09]}  Rb2 {[%clk 0:00:53]} 0-1


[Site "https://www.chess.com"]